[Event "Live Chess"]
[Site "Chess.com"]
[Date "2024.06.02"]
[Round "-"]
[White "MagnersCarlsberg2870"]
[Black "Delacorta"]
[Result "1-0"]
[WhiteElo "1819"]
[BlackElo "1515"]
[TimeControl "300"]
[EndTime "22:49:22 PDT"]
[Termination "MagnersCarlsberg2870 won by resignation"]

1. d4 {[%clk 0:04:57.4]} 1... Nf6 {[%clk 0:04:57.5]} 2. Nf3 {[%clk 0:04:55.6]}
2... d6 {[%clk 0:04:52.1]} 3. Nc3 {[%clk 0:04:53.2]} 3... g6 {[%clk 0:04:51]} 4.
h3 {[%clk 0:04:52.1]} 4... Bg7 {[%clk 0:04:50]} 5. e4 {[%clk 0:04:51.1]} 5...
O-O {[%clk 0:04:45.7]} 6. Bc4 {[%clk 0:04:50]} 6... Nc6 {[%clk 0:04:40.9]} 7.
Qe2 {[%clk 0:04:48.2]} 7... Ne8 {[%clk 0:04:34.4]} 8. e5 {[%clk 0:04:45.6]} 8...
dxe5 {[%clk 0:04:32.4]} 9. dxe5 {[%clk 0:04:44.6]} 9... e6 {[%clk 0:04:27]} 10.
Bg5 {[%clk 0:04:41]} 10... f6 {[%clk 0:04:22.8]} 11. Rd1 {[%clk 0:04:39.4]}
11... Qe7 {[%clk 0:04:20.6]} 12. exf6 {[%clk 0:04:36.8]} 12... Bxf6 {[%clk
0:04:13.8]} 13. Bxf6 {[%clk 0:04:31.8]} 13... Rxf6 {[%clk 0:04:09.5]} 14. Ne4
{[%clk 0:04:29.5]} 14... Rf4 {[%clk 0:03:54.1]} 15. Qe3 {[%clk 0:04:13.8]} 15...
Rf8 {[%clk 0:03:24.7]} 16. O-O {[%clk 0:04:10.2]} 16... Kh8 {[%clk 0:03:14]} 17.
Qc3+ {[%clk 0:03:58.7]} 17... Qg7 {[%clk 0:03:02]} 18. Qa3 {[%clk 0:03:47.4]}
18... Rxf3 {[%clk 0:02:49]} 19. Qxf3 {[%clk 0:03:44.4]} 19... Ne5 {[%clk
0:02:47.5]} 20. Qc3 {[%clk 0:03:34.6]} 20... b6 {[%clk 0:02:18.6]} 21. Rd8
{[%clk 0:03:22.1]} 21... Qe7 {[%clk 0:01:59.2]} 22. Qxe5+ {[%clk 0:03:18.8]} 1-0

[Event "Live Chess"]
[Site "Chess.com"]
[Date "2024.06.02"]
[Round "-"]
[White "booktrunk"]
[Black "WilliamofOrange16th"]
[Result "1/2-1/2"]
[WhiteElo "1539"]
[BlackElo "1988"]
[TimeControl "300"]
[EndTime "22:49:26 PDT"]
[Termination "Game drawn by repetition"]

1. d4 {[%clk 0:04:56.7]} 1... d5 {[%clk 0:04:57.5]} 2. Nc3 {[%clk 0:04:49.6]}
2... c6 {[%clk 0:04:56.2]} 3. e4 {[%clk 0:04:42.7]} 3... dxe4 {[%clk 0:04:54.8]}
4. Nxe4 {[%clk 0:04:41.4]} 4... Nf6 {[%clk 0:04:52.7]} 5. Nxf6+ {[%clk
0:04:39.7]} 5... exf6 {[%clk 0:04:52.6]} 6. Qe2+ {[%clk 0:04:38.6]} 6... Be7
{[%clk 0:04:51.3]} 7. Be3 {[%clk 0:04:35.1]} 7... O-O {[%clk 0:04:50.5]} 8.
O-O-O {[%clk 0:04:33.6]} 8... Re8 {[%clk 0:04:49]} 9. Nf3 {[%clk 0:04:32.4]}
9... Be6 {[%clk 0:04:41.3]} 10. Qd3 {[%clk 0:04:28.2]} 10... Bxa2 {[%clk
0:04:11.3]} 11. b3 {[%clk 0:04:25.1]} 11... Ba3+ {[%clk 0:04:09]} 12. Kd2 {[%clk
0:04:23.4]} 12... Qa5+ {[%clk 0:04:02.1]} 13. c3 {[%clk 0:04:20.5]} 13... c5
{[%clk 0:03:48]} 14. Ra1 {[%clk 0:04:14.5]} 14... Bxb3 {[%clk 0:03:44.9]} 15.
Ke1 {[%clk 0:04:12.4]} 15... cxd4 {[%clk 0:03:40.2]} 16. Nxd4 {[%clk 0:04:06.3]}
16... Nc6 {[%clk 0:03:35.7]} 17. Nxb3 {[%clk 0:04:04.5]} 17... Qa4 {[%clk
0:03:29]} 18. Nc5 {[%clk 0:04:01.4]} 18... Qa5 {[%clk 0:03:01.4]} 19. Nb3 {[%clk
0:04:00.1]} 19... Qa4 {[%clk 0:02:42.4]} 20. Nc5 {[%clk 0:03:54]} 20... Qa5
{[%clk 0:02:40]} 21. Nb3 {[%clk 0:03:52.3]} 1/2-1/2

[Event "Live Chess"]
[Site "Chess.com"]
[Date "2024.06.02"]
[Round "-"]
[White "Dhaydon19"]
[Black "Greenbecker"]
[Result "1-0"]
[WhiteElo "2681"]
[BlackElo "1732"]
[TimeControl "300"]
[EndTime "22:50:00 PDT"]
[Termination "Dhaydon19 won by resignation"]

1. d4 {[%clk 0:04:58.3]} 1... d5 {[%clk 0:04:58]} 2. Nf3 {[%clk 0:04:58]} 2...
Nf6 {[%clk 0:04:55.7]} 3. g3 {[%clk 0:04:57.7]} 3... e6 {[%clk 0:04:54.3]} 4.
Bg2 {[%clk 0:04:57.4]} 4... c5 {[%clk 0:04:53.5]} 5. O-O {[%clk 0:04:57.1]} 5...
Nc6 {[%clk 0:04:52.3]} 6. dxc5 {[%clk 0:04:56.5]} 6... Bxc5 {[%clk 0:04:50.6]}
7. c4 {[%clk 0:04:56.3]} 7... O-O {[%clk 0:04:48.6]} 8. cxd5 {[%clk 0:04:55.9]}
8... exd5 {[%clk 0:04:47]} 9. Qc2 {[%clk 0:04:54.9]} 9... g6 {[%clk 0:04:45]}
10. Qxc5 {[%clk 0:04:53.6]} 10... Bg4 {[%clk 0:04:39.6]} 11. Bg5 {[%clk
0:04:50.7]} 11... Rc8 {[%clk 0:04:38.1]} 12. Qa3 {[%clk 0:04:45.6]} 12... a6
{[%clk 0:04:35.9]} 13. Qa4 {[%clk 0:04:43.6]} 13... Qd6 {[%clk 0:04:27.3]} 14.
Bxf6 {[%clk 0:04:40.6]} 14... Qxf6 {[%clk 0:04:25.1]} 15. Qxg4 {[%clk
0:04:39.4]} 1-0

[Event "Live Chess"]
[Site "Chess.com"]
[Date "2024.06.02"]
[Round "-"]
[White "AlanBstard10"]
[Black "KeithArkell"]
[Result "0-1"]
[WhiteElo "1160"]
[BlackElo "2419"]
[TimeControl "300"]
[EndTime "22:54:30 PDT"]
[Termination "KeithArkell won by resignation"]

1. b4 {[%clk 0:04:57.1]} 1... b6 {[%clk 0:04:58.3]} 2. Bb2 {[%clk 0:04:50.4]}
2... Nf6 {[%clk 0:04:52.2]} 3. a3 {[%clk 0:04:47.2]} 3... Bb7 {[%clk 0:04:49.1]}
4. Nf3 {[%clk 0:04:35.8]} 4... g6 {[%clk 0:04:33.8]} 5. c4 {[%clk 0:04:25]} 5...
Bg7 {[%clk 0:04:32.7]} 6. d3 {[%clk 0:04:16.1]} 6... d6 {[%clk 0:04:31.9]} 7.
Nbd2 {[%clk 0:04:15.1]} 7... Nbd7 {[%clk 0:04:31.2]} 8. e3 {[%clk 0:04:10.3]}
8... O-O {[%clk 0:04:31.1]} 9. Be2 {[%clk 0:04:09]} 9... e5 {[%clk 0:04:27.9]}
10. O-O {[%clk 0:04:04.9]} 10... Re8 {[%clk 0:04:25.1]} 11. e4 {[%clk
0:04:00.9]} 11... a5 {[%clk 0:04:22.9]} 12. b5 {[%clk 0:03:42.5]} 12... Nc5
{[%clk 0:04:19.6]} 13. Nb3 {[%clk 0:03:35.2]} 13... Nfd7 {[%clk 0:04:16.9]} 14.
Nfd2 {[%clk 0:03:16.4]} 14... a4 {[%clk 0:04:05.6]} 15. Nxc5 {[%clk 0:03:14.9]}
15... Nxc5 {[%clk 0:04:05.1]} 16. f4 {[%clk 0:03:00.5]} 16... f5 {[%clk
0:04:05]} 17. fxe5 {[%clk 0:02:57.2]} 17... dxe5 {[%clk 0:04:00.9]} 18. exf5
{[%clk 0:02:44.5]} 18... Nxd3 {[%clk 0:03:57.1]} 19. Bxd3 {[%clk 0:02:34.6]}
19... Qg5 {[%clk 0:03:35.6]} 20. g3 {[%clk 0:02:14.4]} 20... Qe3+ {[%clk
0:03:32.6]} 21. Rf2 {[%clk 0:02:08.3]} 21... Qxd3 {[%clk 0:03:31.7]} 22. Qg4
{[%clk 0:02:00.6]} 22... gxf5 {[%clk 0:03:11.2]} 23. Qg5 {[%clk 0:01:42.1]}
23... Rad8 {[%clk 0:02:48.7]} 24. Rd1 {[%clk 0:01:37]} 24... Qc2 {[%clk
0:02:41.6]} 25. Ba1 {[%clk 0:01:18.7]} 25... Qxd1+ {[%clk 0:02:37.7]} 0-1

[Event "Live Chess"]
[Site "Chess.com"]
[Date "2024.06.02"]
[Round "-"]
[White "Delacorta"]
[Black "elephantgerrald"]
[Result "1-0"]
[WhiteElo "1515"]
[BlackElo "806"]
[TimeControl "300"]
[EndTime "22:55:13 PDT"]
[Termination "Delacorta won by checkmate"]

1. d4 {[%clk 0:04:57.5]} 1... d5 {[%clk 0:04:58.9]} 2. Nf3 {[%clk 0:04:52.6]}
2... Nc6 {[%clk 0:04:57.6]} 3. e3 {[%clk 0:04:46.8]} 3... Bg4 {[%clk 0:04:55.6]}
4. Be2 {[%clk 0:04:45.3]} 4... Nf6 {[%clk 0:04:52.6]} 5. Nbd2 {[%clk 0:04:39.7]}
5... Qd7 {[%clk 0:04:46.9]} 6. h3 {[%clk 0:04:34.6]} 6... Bf5 {[%clk 0:04:43]}
7. g4 {[%clk 0:04:24.6]} 7... Be4 {[%clk 0:04:40.4]} 8. Nxe4 {[%clk 0:04:18]}
8... dxe4 {[%clk 0:04:38.1]} 9. Nd2 {[%clk 0:04:12.5]} 9... O-O-O {[%clk
0:04:32]} 10. b3 {[%clk 0:04:09.8]} 10... Nxd4 {[%clk 0:04:29.4]} 11. exd4
{[%clk 0:03:54]} 11... Qxd4 {[%clk 0:04:27.4]} 12. Rb1 {[%clk 0:03:37.5]} 12...
e6 {[%clk 0:04:18.7]} 13. Nc4 {[%clk 0:03:34.7]} 13... Qc3+ {[%clk 0:04:16]} 14.
Bd2 {[%clk 0:03:23.5]} 14... Qd4 {[%clk 0:03:51.6]} 15. Be3 {[%clk 0:03:01.4]}
15... Qc3+ {[%clk 0:03:45.9]} 16. Bd2 {[%clk 0:02:55.9]} 16... Qd4 {[%clk
0:03:44.7]} 17. O-O {[%clk 0:02:37.1]} 17... Bc5 {[%clk 0:03:35.5]} 18. Be3
{[%clk 0:02:28.9]} 18... Qxd1 {[%clk 0:03:29.4]} 19. Rbxd1 {[%clk 0:02:24.3]}
19... Bxe3 {[%clk 0:03:28.2]} 20. Nxe3 {[%clk 0:02:16.3]} 20... h5 {[%clk
0:03:24.1]} 21. g5 {[%clk 0:02:13.9]} 21... Nd5 {[%clk 0:03:16.5]} 22. Nxd5
{[%clk 0:02:09.5]} 22... Rxd5 {[%clk 0:03:10.7]} 23. Bc4 {[%clk 0:01:57.1]}
23... Rxg5+ {[%clk 0:03:06.7]} 24. Kh2 {[%clk 0:01:52.3]} 24... b6 {[%clk
0:03:02.8]} 25. Rd4 {[%clk 0:01:49.5]} 25... Re5 {[%clk 0:02:57.1]} 26. Rfd1
{[%clk 0:01:47.7]} 26... e3 {[%clk 0:02:48.3]} 27. Ba6+ {[%clk 0:01:46.2]} 27...
Kb8 {[%clk 0:02:43.4]} 28. Rd8+ {[%clk 0:01:45.2]} 28... Rxd8 {[%clk 0:02:40.9]}
29. Rxd8# {[%clk 0:01:44]} 1-0

[Event "Live Chess"]
[Site "Chess.com"]
[Date "2024.06.02"]
[Round "-"]
[White "McFim"]
[Black "Bradfield133"]
[Result "1-0"]
[WhiteElo "1689"]
[BlackElo "1869"]
[TimeControl "300"]
[EndTime "22:55:39 PDT"]
[Termination "McFim won on time"]

1. e4 {[%clk 0:04:57.7]} 1... c5 {[%clk 0:04:58.6]} 2. Nf3 {[%clk 0:04:56.5]}
2... Nc6 {[%clk 0:04:57.6]} 3. Bb5 {[%clk 0:04:55.8]} 3... Qb6 {[%clk 0:04:55]}
4. Bxc6 {[%clk 0:04:53.2]} 4... Qxc6 {[%clk 0:04:53.3]} 5. Nc3 {[%clk
0:04:52.8]} 5... b5 {[%clk 0:04:49.5]} 6. d3 {[%clk 0:04:50.9]} 6... b4 {[%clk
0:04:37.6]} 7. Nd5 {[%clk 0:04:49.3]} 7... e6 {[%clk 0:04:34.2]} 8. Ne3 {[%clk
0:04:47.9]} 8... Bb7 {[%clk 0:04:19.9]} 9. O-O {[%clk 0:04:46.2]} 9... Ne7
{[%clk 0:04:14]} 10. b3 {[%clk 0:04:36.1]} 10... Ng6 {[%clk 0:04:05.8]} 11. Bb2
{[%clk 0:04:30.9]} 11... h5 {[%clk 0:04:03.4]} 12. h3 {[%clk 0:04:28.7]} 12...
f6 {[%clk 0:03:52.5]} 13. Nc4 {[%clk 0:04:12.2]} 13... a5 {[%clk 0:03:28.6]} 14.
Re1 {[%clk 0:03:51.8]} 14... Be7 {[%clk 0:03:13.5]} 15. d4 {[%clk 0:02:14]}
15... cxd4 {[%clk 0:03:00.1]} 16. Bxd4 {[%clk 0:01:58.8]} 16... Kf7 {[%clk
0:02:18.8]} 17. Rc1 {[%clk 0:01:44.2]} 17... h4 {[%clk 0:01:51.2]} 18. c3 {[%clk
0:01:41.5]} 18... Qa6 {[%clk 0:01:28.1]} 19. Nb2 {[%clk 0:01:29]} 19... Rac8
{[%clk 0:01:21.5]} 20. c4 {[%clk 0:01:19.4]} 20... Qc6 {[%clk 0:00:59.1]} 21.
Nd3 {[%clk 0:01:08.2]} 21... d5 {[%clk 0:00:50]} 22. cxd5 {[%clk 0:01:04.8]}
22... exd5 {[%clk 0:00:48]} 23. Rxc6 {[%clk 0:01:02.7]} 23... Rxc6 {[%clk
0:00:46.6]} 24. exd5 {[%clk 0:01:00.5]} 24... Rd6 {[%clk 0:00:41.2]} 25. Bc5
{[%clk 0:00:53.3]} 25... Rxd5 {[%clk 0:00:40]} 26. Bxe7 {[%clk 0:00:50.7]} 26...
Nxe7 {[%clk 0:00:38.3]} 27. Qc2 {[%clk 0:00:46.3]} 27... Rc8 {[%clk 0:00:34.6]}
28. Qe2 {[%clk 0:00:42.8]} 28... Rc7 {[%clk 0:00:17.6]} 29. Qe6+ {[%clk
0:00:39.8]} 29... Kf8 {[%clk 0:00:16.7]} 30. Nf4 {[%clk 0:00:37.4]} 30... Rdc5
{[%clk 0:00:05.2]} 31. Ng6+ {[%clk 0:00:34.7]} 1-0

[Event "Live Chess"]
[Site "Chess.com"]
[Date "2024.06.02"]
[Round "-"]
[White "EPotapov05"]
[Black "WilliamofOrange16th"]
[Result "1-0"]
[WhiteElo "1808"]
[BlackElo "1976"]
[TimeControl "300"]
[EndTime "22:55:50 PDT"]
[Termination "EPotapov05 won by resignation"]

1. d4 {[%clk 0:04:56.6]} 1... d5 {[%clk 0:04:59]} 2. c4 {[%clk 0:04:55.6]} 2...
c6 {[%clk 0:04:58.2]} 3. Nf3 {[%clk 0:04:53.7]} 3... Nf6 {[%clk 0:04:57.5]} 4.
Qc2 {[%clk 0:04:52.7]} 4... dxc4 {[%clk 0:04:55]} 5. Qxc4 {[%clk 0:04:50.9]}
5... Bf5 {[%clk 0:04:54.5]} 6. Nc3 {[%clk 0:04:49]} 6... e6 {[%clk 0:04:51.5]}
7. Bg5 {[%clk 0:04:47.7]} 7... Nbd7 {[%clk 0:04:50.6]} 8. e3 {[%clk 0:04:45.7]}
8... Be7 {[%clk 0:04:49.4]} 9. Be2 {[%clk 0:04:41.4]} 9... O-O {[%clk
0:04:47.9]} 10. O-O {[%clk 0:04:38.7]} 10... Rc8 {[%clk 0:04:36.1]} 11. Nh4
{[%clk 0:04:36.7]} 11... Bg6 {[%clk 0:04:28.6]} 12. Nxg6 {[%clk 0:04:34.9]}
12... hxg6 {[%clk 0:04:28.5]} 13. Qb3 {[%clk 0:04:28.1]} 13... b6 {[%clk
0:04:26.7]} 14. Rfd1 {[%clk 0:04:22.8]} 14... Nh5 {[%clk 0:04:21.6]} 15. Bxe7
{[%clk 0:04:20.1]} 15... Qxe7 {[%clk 0:04:21.5]} 16. Rac1 {[%clk 0:04:16.9]}
16... f5 {[%clk 0:04:10.3]} 17. Bf3 {[%clk 0:04:15.2]} 17... Nhf6 {[%clk
0:04:05.1]} 18. Ne2 {[%clk 0:04:09.7]} 18... Nd5 {[%clk 0:04:02]} 19. Bxd5
{[%clk 0:04:03.3]} 19... exd5 {[%clk 0:04:01.9]} 20. Nf4 {[%clk 0:04:00]} 20...
g5 {[%clk 0:03:59.4]} 21. Ng6 {[%clk 0:03:55.8]} 21... Qe6 {[%clk 0:03:55.7]}
22. Nxf8 {[%clk 0:03:53.9]} 22... Kxf8 {[%clk 0:03:55.6]} 23. Qd3 {[%clk
0:03:46.1]} 23... Kf7 {[%clk 0:03:53.2]} 24. Rc3 {[%clk 0:03:44.7]} 24... g4
{[%clk 0:03:30.6]} 25. Rdc1 {[%clk 0:03:42.7]} 25... g6 {[%clk 0:03:13.5]} 26.
Qa6 {[%clk 0:03:28.7]} 26... Rc7 {[%clk 0:03:09.3]} 27. Qa4 {[%clk 0:03:27.5]}
27... Nb8 {[%clk 0:03:06.5]} 28. b4 {[%clk 0:03:19.7]} 28... Qd6 {[%clk
0:03:02.9]} 29. a3 {[%clk 0:03:17.2]} 29... Kf6 {[%clk 0:02:32.1]} 30. R1c2
{[%clk 0:03:13.6]} 30... Kg5 {[%clk 0:02:30.1]} 31. Qb3 {[%clk 0:03:08.4]} 31...
Rh7 {[%clk 0:02:25.9]} 32. g3 {[%clk 0:03:05.7]} 32... Qd8 {[%clk 0:02:04.4]}
33. b5 {[%clk 0:03:01.9]} 33... Qh8 {[%clk 0:02:01.5]} 34. f3 {[%clk 0:02:51.4]}
34... gxf3 {[%clk 0:01:58.3]} 35. bxc6 {[%clk 0:02:49.4]} 35... Rc7 {[%clk
0:01:38.5]} 36. Qxd5 {[%clk 0:02:46]} 36... Qh3 {[%clk 0:01:34.6]} 37. Qxf3
{[%clk 0:02:43.4]} 1-0

[Event "Live Chess"]
[Site "Chess.com"]
[Date "2024.06.02"]
[Round "-"]
[White "Greenbecker"]
[Black "Ksenia_2013"]
[Result "1-0"]
[WhiteElo "1733"]
[BlackElo "832"]
[TimeControl "300"]
[EndTime "22:56:02 PDT"]
[Termination "Greenbecker won by resignation"]

1. e4 {[%clk 0:04:56.5]} 1... e5 {[%clk 0:04:58.4]} 2. Nf3 {[%clk 0:04:54.7]}
2... Bd6 {[%clk 0:04:56.4]} 3. d4 {[%clk 0:04:52.7]} 3... Nc6 {[%clk 0:04:53.2]}
4. Nc3 {[%clk 0:04:47.8]} 4... Nf6 {[%clk 0:04:47.4]} 5. Bg5 {[%clk 0:04:45.4]}
5... O-O {[%clk 0:04:45.6]} 6. Bb5 {[%clk 0:04:41.1]} 6... b6 {[%clk 0:04:40]}
7. Bxc6 {[%clk 0:04:39.6]} 7... dxc6 {[%clk 0:04:37.8]} 8. dxe5 {[%clk
0:04:38.8]} 8... Bxe5 {[%clk 0:04:35.3]} 9. Nxe5 {[%clk 0:04:37.9]} 9... Qe7
{[%clk 0:04:22.5]} 10. Nxc6 {[%clk 0:04:33.2]} 10... Qe6 {[%clk 0:04:13.4]} 11.
Nd4 {[%clk 0:04:26.5]} 11... Qc4 {[%clk 0:04:07.3]} 12. Bxf6 {[%clk 0:04:19.8]}
12... gxf6 {[%clk 0:04:00.5]} 13. Nf5 {[%clk 0:04:09.3]} 13... Bxf5 {[%clk
0:03:50]} 14. exf5 {[%clk 0:04:06.1]} 14... Rfe8+ {[%clk 0:03:46.7]} 15. Ne2
{[%clk 0:04:04.3]} 15... Re7 {[%clk 0:03:43.3]} 16. b3 {[%clk 0:03:43.4]} 16...
Qa6 {[%clk 0:03:38.9]} 17. O-O {[%clk 0:03:30.3]} 17... Rxe2 {[%clk 0:03:35]}
18. Re1 {[%clk 0:03:28]} 18... Rae8 {[%clk 0:03:30.4]} 19. Rxe2 {[%clk
0:03:24.7]} 19... Rxe2 {[%clk 0:03:28.5]} 20. c4 {[%clk 0:03:17.4]} 20... Re5
{[%clk 0:03:21]} 21. Qg4+ {[%clk 0:03:13.1]} 21... Kh8 {[%clk 0:03:18.6]} 22.
Rd1 {[%clk 0:03:06.5]} 22... Qc8 {[%clk 0:03:11.9]} 23. f4 {[%clk 0:02:47.6]}
23... Re4 {[%clk 0:03:08.1]} 24. Qf3 {[%clk 0:02:40.4]} 24... Qe8 {[%clk
0:03:05.1]} 25. Qc3 {[%clk 0:02:31.5]} 25... a5 {[%clk 0:02:59.4]} 26. Qxf6+
{[%clk 0:02:27.6]} 26... Kg8 {[%clk 0:02:57]} 27. Rd8 {[%clk 0:02:13.1]} 27...
Re1+ {[%clk 0:02:54.2]} 28. Kf2 {[%clk 0:02:11.9]} 28... Re4 {[%clk 0:02:34.7]}
29. Rxe8+ {[%clk 0:02:06.5]} 29... Rxe8 {[%clk 0:02:32.5]} 30. Kf3 {[%clk
0:02:04.2]} 30... Rd8 {[%clk 0:02:30.4]} 31. Qxd8+ {[%clk 0:02:02.2]} 1-0

[Event "Live Chess"]
[Site "Chess.com"]
[Date "2024.06.02"]
[Round "-"]
[White "Tatarinov_Maxim"]
[Black "matt1979"]
[Result "1-0"]
[WhiteElo "2281"]
[BlackElo "1377"]
[TimeControl "300"]
[EndTime "22:56:34 PDT"]
[Termination "Tatarinov_Maxim won by resignation"]

1. Nf3 {[%clk 0:04:56.2]} 1... f5 {[%clk 0:04:57.3]} 2. e4 {[%clk 0:04:54.8]}
2... d5 {[%clk 0:04:47.4]} 3. exd5 {[%clk 0:04:47.2]} 3... Nf6 {[%clk
0:04:41.1]} 4. c4 {[%clk 0:04:44.8]} 4... c6 {[%clk 0:04:37.7]} 5. dxc6 {[%clk
0:04:42.6]} 5... Nxc6 {[%clk 0:04:35.9]} 6. d4 {[%clk 0:04:40.2]} 6... e6 {[%clk
0:04:33.6]} 7. Be2 {[%clk 0:04:36.9]} 7... Bb4+ {[%clk 0:04:28.7]} 8. Bd2 {[%clk
0:04:32.7]} 8... Bxd2+ {[%clk 0:04:27.3]} 9. Qxd2 {[%clk 0:04:32.6]} 9... O-O
{[%clk 0:04:24.6]} 10. O-O {[%clk 0:04:31.3]} 10... Ne4 {[%clk 0:04:22]} 11. Qe3
{[%clk 0:04:21.9]} 11... Qf6 {[%clk 0:04:06.6]} 12. Nc3 {[%clk 0:04:19.4]} 12...
Nxc3 {[%clk 0:04:01.3]} 13. bxc3 {[%clk 0:04:18]} 13... Bd7 {[%clk 0:03:54.5]}
14. Rab1 {[%clk 0:04:15.3]} 14... b6 {[%clk 0:03:51.4]} 15. Ne5 {[%clk
0:03:58.9]} 15... Nxe5 {[%clk 0:03:46.5]} 16. dxe5 {[%clk 0:03:58.8]} 16... Qg6
{[%clk 0:03:39.8]} 17. Bf3 {[%clk 0:03:55.7]} 17... Rad8 {[%clk 0:03:33.8]} 18.
Rfd1 {[%clk 0:03:54.4]} 18... Bc8 {[%clk 0:03:18.4]} 19. c5 {[%clk 0:03:42.8]}
19... bxc5 {[%clk 0:03:02.8]} 20. Qxc5 {[%clk 0:03:39.6]} 20... a6 {[%clk
0:02:57.3]} 21. Qc7 {[%clk 0:03:25.3]} 21... Qe8 {[%clk 0:02:51]} 22. Rxd8
{[%clk 0:03:19.6]} 22... Qxd8 {[%clk 0:02:48.3]} 23. Qxd8 {[%clk 0:03:19]} 23...
Rxd8 {[%clk 0:02:46.5]} 24. Rb8 {[%clk 0:03:17.6]} 24... Kf8 {[%clk 0:02:35.5]}
25. h4 {[%clk 0:03:10.5]} 25... Ke7 {[%clk 0:02:27.1]} 26. Bb7 {[%clk
0:03:08.7]} 26... Kd7 {[%clk 0:02:25.3]} 27. Bxc8+ {[%clk 0:03:07.1]} 27... Rxc8
{[%clk 0:02:23.6]} 28. Rxc8 {[%clk 0:03:06.7]} 28... Kxc8 {[%clk 0:02:22.7]} 29.
f4 {[%clk 0:03:05.6]} 29... Kc7 {[%clk 0:02:21.1]} 30. Kf2 {[%clk 0:03:05.5]}
30... Kc6 {[%clk 0:02:19.9]} 31. Ke3 {[%clk 0:03:05.4]} 31... Kd5 {[%clk
0:02:14.5]} 32. Kd3 {[%clk 0:03:04]} 32... g6 {[%clk 0:02:07.1]} 33. c4+ {[%clk
0:02:48.3]} 33... Kc5 {[%clk 0:02:04.7]} 34. Kc3 {[%clk 0:02:47.6]} 34... a5
{[%clk 0:01:59]} 35. a3 {[%clk 0:02:43.8]} 35... a4 {[%clk 0:01:53.8]} 36. Kd3
{[%clk 0:02:40.9]} 36... h6 {[%clk 0:01:49.4]} 37. Kc3 {[%clk 0:02:37.3]} 37...
h5 {[%clk 0:01:43.4]} 38. g3 {[%clk 0:02:33.8]} 38... Kb6 {[%clk 0:01:25.8]} 39.
Kb4 {[%clk 0:02:33.7]} 39... Kc6 {[%clk 0:01:23.1]} 40. Kxa4 {[%clk 0:02:27.9]}
40... Kb6 {[%clk 0:01:22.2]} 41. Kb4 {[%clk 0:02:27]} 41... Kc6 {[%clk
0:01:15.9]} 42. a4 {[%clk 0:02:26.9]} 42... Kb6 {[%clk 0:01:14.9]} 43. a5+
{[%clk 0:02:26.4]} 43... Kc6 {[%clk 0:01:13.6]} 44. c5 {[%clk 0:02:20.6]} 44...
Kb7 {[%clk 0:01:12.1]} 45. Kb5 {[%clk 0:02:20]} 45... Kc7 {[%clk 0:01:11.1]} 46.
c6 {[%clk 0:02:19.5]} 46... Kb8 {[%clk 0:01:10.1]} 47. Kb6 {[%clk 0:02:18.5]}
47... Kc8 {[%clk 0:01:07.9]} 48. c7 {[%clk 0:02:17.6]} 48... g5 {[%clk
0:01:04.1]} 49. hxg5 {[%clk 0:02:15]} 49... h4 {[%clk 0:01:02.2]} 50. gxh4
{[%clk 0:02:14.9]} 50... Kd7 {[%clk 0:00:58]} 51. Kb7 {[%clk 0:02:14.8]} 51...
Ke8 {[%clk 0:00:55]} 52. c8=Q+ {[%clk 0:02:14.1]} 1-0

[Event "Live Chess"]
[Site "Chess.com"]
[Date "2024.06.02"]
[Round "-"]
[White "RockTroll"]
[Black "Duke_of_Bebington"]
[Result "1-0"]
[WhiteElo "2183"]
[BlackElo "1659"]
[TimeControl "300"]
[EndTime "22:57:06 PDT"]
[Termination "RockTroll won by resignation"]

1. Nf3 {[%clk 0:04:58.3]} 1... d5 {[%clk 0:04:58.6]} 2. g3 {[%clk 0:04:58.2]}
2... Nf6 {[%clk 0:04:56.6]} 3. Bg2 {[%clk 0:04:57.7]} 3... c6 {[%clk 0:04:56.2]}
4. O-O {[%clk 0:04:56.6]} 4... Bf5 {[%clk 0:04:55.8]} 5. d3 {[%clk 0:04:56.2]}
5... h6 {[%clk 0:04:55]} 6. Nc3 {[%clk 0:04:55.7]} 6... e6 {[%clk 0:04:54]} 7.
Nd2 {[%clk 0:04:55.3]} 7... Be7 {[%clk 0:04:48.7]} 8. e4 {[%clk 0:04:54.8]} 8...
dxe4 {[%clk 0:04:47.6]} 9. dxe4 {[%clk 0:04:54]} 9... Bh7 {[%clk 0:04:47]} 10.
Qe2 {[%clk 0:04:51.4]} 10... O-O {[%clk 0:04:46.1]} 11. Rd1 {[%clk 0:04:47.3]}
11... Nbd7 {[%clk 0:04:44.6]} 12. Nc4 {[%clk 0:04:45.3]} 12... Qc7 {[%clk
0:04:37.1]} 13. a4 {[%clk 0:04:15.1]} 13... a5 {[%clk 0:04:33.3]} 14. Be3 {[%clk
0:03:54]} 14... Nc5 {[%clk 0:04:01.8]} 15. Bf4 {[%clk 0:03:48.8]} 15... Qc8
{[%clk 0:03:48.8]} 16. Nd6 {[%clk 0:03:48]} 16... Qb8 {[%clk 0:03:36.8]} 17.
Nxf7 {[%clk 0:03:44.9]} 17... Rxf7 {[%clk 0:03:31.7]} 18. Bxb8 {[%clk
0:03:43.3]} 1-0